fUST/lending_fUST_20250718
["ID","MTS","AMOUNT","RATE_DAILY","PERIOD"]
[372866570,1752784245074,-500.0,0.00017999,2]
[372866571,1752784245084,-300.0,0.00017999,2]
[372866572,1752784245094,-9179.42662822,0.00018,2]
[372866603,1752784245903,-26428.69443747,0.00018,2]
[372866604,1752784245914,-9342.62638044,0.00018,2]
[372866605,1752784245923,-5519.86604441,0.00018,2]
[372866606,1752784246017,-4995.81706741,0.00018,2]
[372866609,1752784246032,-22629.92545144,0.00018,2]
[372866610,1752784246044,-12694.18448564,0.00018,2]
[372866611,1752784246056,-160.0,0.00018001,2]
[372866612,1752784246069,-160.0,0.00018001,2]
[372866613,1752784246082,-839.15451687,0.00018001,2]
[372866614,1752784246094,-160.0,0.00018001,2]
[372866615,1752784246109,-214.44804168,0.00018001,2]
[372866616,1752784246120,-525.67742785,0.00018001,2]
[372866617,1752784246131,-230.85589339,0.00018001,2]
[372866618,1752784246141,-215.59244943,0.00018001,2]
[372866619,1752784246151,-160.0,0.00018001,2]
[372866620,1752784246163,-420.0,0.0001806,2]
[372866621,1752784246175,-460.0,0.00018173,2]
[372866622,1752784246187,-276.59245968,0.00018176,2]
[372866623,1752784246198,-460.0,0.00018176,2]
[372866624,1752784246209,-460.0,0.00018176,2]
[372866625,1752784246220,-460.0,0.00018177,2]
[372866626,1752784246231,-460.0,0.00018178,2]
[372866627,1752784246242,-159.481546,0.00018179,2]
[372866628,1752784246252,-159.481546,0.00018179,2]
[372866629,1752784246264,-460.0,0.00018447,2]
[372866630,1752784246275,-460.0,0.0001845,2]
[372866631,1752784246286,-460.0,0.0001845,2]
[372866632,1752784246299,-460.0,0.00018451,2]
[372866633,1752784246310,-276.59245968,0.00018452,2]
[372866634,1752784246321,-460.0,0.00018452,2]
[372866635,1752784246332,-1044.37196,0.00018455,2]
[372866636,1752784246344,-1044.37196,0.00018455,2]
[372866637,1752784246355,-460.0,0.00018721,2]
[372866638,1752784246367,-485.49,0.00018724,2]
[372866639,1752784246378,-357.29912977,0.00018724,2]
[372866902,1752784430368,1192.36627517,0.00016434,2]
[372866909,1752784436944,196.21757411,0.00016434,2]
[372866954,1752784465227,178.96768194,0.00016433,2]
[372867276,1752784762421,8258.55415059,0.00015785,2]
[372867278,1752784762445,10000.0,0.00015785,2]
[372867279,1752784762475,6641.44584941,0.00015785,2]
[372867683,1752785100830,374.345949,0.00013699,2]
[372868111,1752785431999,-300.0,0.00016521,2]
[372868112,1752785432010,-1200.0,0.00016521,2]
[372868113,1752785432020,-466.16899632,0.00016522,2]
[372868114,1752785432030,-460.0,0.00016522,2]
[372868115,1752785432039,-460.0,0.00016522,2]
[372868116,1752785432048,-460.0,0.00016522,2]
[372868117,1752785432057,-500.0,0.00016522,2]
[372868118,1752785432067,-331.39897984,0.00016522,2]
[372868120,1752785432076,-500.0,0.00016522,2]
[372868122,1752785432085,-500.0,0.00016522,2]
[372868124,1752785432095,-547.6801425,0.00016522,2]
[372868126,1752785432104,-331.75634873,0.00016522,2]
[372868127,1752785432116,-152.59288644,0.00016522,2]
[372868128,1752785432126,-456.47163705,0.00016522,2]
[372868129,1752785432140,-43.52836295,0.00016522,2]
[372868131,1752785432149,-500.0,0.00016522,2]
[372868132,1752785432159,-500.0,0.00016522,2]
[372868133,1752785432168,-641.54810443,0.00016522,2]
[372868134,1752785432177,-500.0,0.00016522,2]
[372868135,1752785432187,-500.0,0.00016522,2]
[372868136,1752785432197,-500.0,0.00016522,2]
[372868137,1752785432206,-500.0,0.00016522,2]
[372868138,1752785432215,-283.22660064,0.00016522,2]
[372868139,1752785432225,-500.0,0.00016522,2]
[372868140,1752785432234,-500.0,0.00016522,2]
[372868141,1752785432244,-500.0,0.00016522,2]
[372868142,1752785432253,-500.0,0.00016522,2]
[372868143,1752785432263,-500.0,0.00016522,2]
[372868144,1752785432272,-500.0,0.00016522,2]
[372868145,1752785432282,-500.0,0.00016522,2]
[372868146,1752785432291,-500.0,0.00016522,2]
[372868147,1752785432300,-500.0,0.00016522,2]
[372868148,1752785432310,-358.23856791,0.00016522,2]
[372868149,1752785432320,-500.0,0.00016522,2]
[372868150,1752785432329,-500.0,0.00016522,2]
[372868151,1752785432339,-500.0,0.00016522,2]
[372868152,1752785432349,-500.0,0.00016522,2]
[372868153,1752785432359,-500.0,0.00016522,2]
[372868154,1752785432368,-500.0,0.00016522,2]
[372868155,1752785432378,-500.0,0.00016522,2]
[372868156,1752785432390,-500.0,0.00016522,2]
[372868157,1752785432399,-500.0,0.00016522,2]
[372868158,1752785432409,-500.0,0.00016522,2]
[372868159,1752785432419,-500.0,0.00016522,2]
[372868160,1752785432430,-500.0,0.00016522,2]
[372868161,1752785432441,-500.0,0.00016522,2]
[372868162,1752785432451,-500.0,0.00016522,2]
[372868163,1752785432461,-106.26507855,0.00016522,2]
[372868164,1752785432475,-393.73492145,0.00016522,2]
[372868165,1752785432484,-500.0,0.00016522,2]
[372868166,1752785432494,-500.0,0.00016522,2]
[372868167,1752785432504,-500.0,0.00016522,2]
[372868168,1752785432517,-500.0,0.00016522,2]
[372868169,1752785432526,-500.0,0.00016522,2]
[372868170,1752785432536,-40.81316695,0.00016522,2]
[372868197,1752785438021,-459.18683305,0.00016522,2]
[372868200,1752785438032,-127.29810982,0.00016522,2]
[372868203,1752785438044,-372.70189018,0.00016522,2]
[372868206,1752785438054,-500.0,0.00016522,2]
[372868228,1752785438243,-216.2616087,0.00016522,2]
[372868232,1752785438263,-283.7383913,0.00016522,2]
[372868234,1752785438273,-500.0,0.00016522,2]
[372868236,1752785438283,-500.0,0.00016522,2]
[372868238,1752785438292,-32.67235477,0.00016522,2]
[372868240,1752785438303,-467.32764523,0.00016522,2]
[372868242,1752785438313,-500.0,0.00016522,2]
[372868244,1752785438322,-500.0,0.00016522,2]
[372868246,1752785438331,-500.0,0.00016522,2]
[372868248,1752785438341,-500.0,0.00016522,2]
[372868250,1752785438350,-371.0988246,0.00016522,2]
[372868252,1752785438362,-128.9011754,0.00016522,2]
[372868254,1752785438372,-386.0988246,0.00016522,2]
[372868690,1752785443001,-113.9011754,0.00016522,2]
[372868693,1752785443012,-500.0,0.00016522,2]
[372868695,1752785443022,-500.0,0.00016522,2]
[372868697,1752785443031,-369.4613312,0.00016522,2]
[372868699,1752785443041,-500.0,0.00016522,2]
[372868701,1752785443050,-460.0,0.00016523,2]
[372868703,1752785443060,-460.0,0.00016523,2]
[372868705,1752785443069,-323.75988293,0.00016523,2]
[372868707,1752785443079,-460.0,0.00016523,2]
[372868708,1752785443089,-460.0,0.00016523,2]
[372868710,1752785443098,-460.0,0.00016524,2]
[372868712,1752785443107,-460.0,0.00016524,2]
[372868714,1752785443116,-460.0,0.00016524,2]
[372868716,1752785443126,-460.0,0.00016524,2]
[372868717,1752785443135,-460.0,0.00016524,2]
[372868719,1752785443144,-510.30853015,0.00016524,2]
[372868721,1752785443154,-460.0,0.00016524,2]
[372868723,1752785443163,-355.48063181,0.00016524,2]
[372868725,1752785443172,-460.0,0.00016524,2]
[372868727,1752785443181,-460.0,0.00016524,2]
[372868728,1752785443191,-460.0,0.00016524,2]
[372868730,1752785443200,-460.0,0.00016524,2]
[372868732,1752785443210,-193.22963688,0.00016524,2]
[372868734,1752785443219,-460.0,0.00016524,2]
[372868736,1752785443228,-252.95781163,0.00016524,2]
[372868738,1752785443241,-207.04218837,0.00016524,2]
[372868740,1752785443250,-460.0,0.00016524,2]
[372868741,1752785443259,-460.0,0.00016524,2]
[372868743,1752785443269,-460.0,0.00016524,2]
[372868745,1752785443278,-460.0,0.00016524,2]
[372868747,1752785443287,-460.0,0.00016524,2]
[372868749,1752785443298,-460.0,0.00016524,2]
[372868750,1752785443307,-460.0,0.00016524,2]
[372868752,1752785443317,-460.0,0.00016524,2]
[372868754,1752785443326,-460.0,0.00016524,2]
[372868756,1752785443336,-460.0,0.00016524,2]
[372868757,1752785443348,-460.0,0.00016524,2]
[372868759,1752785443357,-460.0,0.00016524,2]
[372868761,1752785443366,-460.0,0.00016524,2]
[372868762,1752785443375,-460.0,0.00016524,2]
[372868764,1752785443384,-460.0,0.00016524,2]
[372868766,1752785443394,-460.0,0.00016524,2]
[372868768,1752785443409,-460.0,0.00016524,2]
[372868770,1752785443418,-460.0,0.00016524,2]
[372868772,1752785443428,-460.0,0.00016524,2]
[372868774,1752785443439,-460.0,0.00016524,2]
[372868776,1752785443449,-460.0,0.00016524,2]
[372868777,1752785443459,-460.0,0.00016524,2]
[372868779,1752785443468,-460.0,0.00016524,2]
[372868781,1752785443478,-460.0,0.00016524,2]
[372868783,1752785443489,-460.0,0.00016524,2]
[372868785,1752785443499,-460.0,0.00016524,2]
[372868787,1752785443508,-516.70875397,0.00016524,2]
[372868789,1752785443519,-402.70104669,0.00016524,2]
[372868791,1752785443529,-460.0,0.00016526,2]
[372868793,1752785443538,-460.0,0.00016526,2]
[372868794,1752785443549,-460.0,0.00016526,2]
[372868796,1752785443558,-460.0,0.00016526,2]
[372868798,1752785443568,-460.0,0.00016526,2]
[372868800,1752785443577,-460.0,0.00016526,2]
[372868801,1752785443587,-460.01999998,0.00016526,2]
[372868803,1752785443597,-460.0,0.00016526,2]
[372868805,1752785443607,-460.0,0.00016526,2]
[372868806,1752785443616,-460.0,0.00016526,2]
[372868808,1752785443627,-460.0,0.00016526,2]
[372868810,1752785443637,-460.0,0.00016526,2]
[372868812,1752785443649,-460.0,0.00016526,2]
[372868813,1752785443659,-460.0,0.00016526,2]
[372868815,1752785443668,-460.0,0.00016526,2]
[372868817,1752785443678,-460.0,0.00016526,2]
[372868819,1752785443687,-460.0,0.00016526,2]
[372868821,1752785443697,-481.21309109,0.00016526,2]
[372868822,1752785443706,-460.0,0.00016526,2]
[372868824,1752785443716,-460.0,0.00016526,2]
[372868826,1752785443726,-460.0,0.00016526,2]
[372868828,1752785443735,-460.0,0.00016526,2]
[372868830,1752785443745,-460.0,0.00016526,2]
[372868832,1752785443754,-460.0,0.00016526,2]
[372868833,1752785443764,-460.0,0.00016526,2]
[372868835,1752785443773,-460.0,0.00016526,2]
[372868837,1752785443783,-460.0,0.00016526,2]
[372868839,1752785443792,-460.0,0.00016526,2]
[372868841,1752785443806,-237.76390023,0.00016527,2]
[372868842,1752785443816,-460.0,0.00016527,2]
[372868844,1752785443825,-460.0,0.00016527,2]
[372868846,1752785443834,-460.0,0.00016527,2]
[372868848,1752785443844,-460.0,0.00016527,2]
[372868850,1752785443854,-460.0,0.00016527,2]
[372868852,1752785443864,-460.0,0.00016527,2]
[372868853,1752785443873,-465.62829426,0.00016527,2]
[372868855,1752785443883,-460.0,0.00016527,2]
[372868857,1752785443892,-460.0,0.00016527,2]
[372868859,1752785443903,-460.0,0.00016527,2]
[372868861,1752785443913,-460.0,0.00016527,2]
[372868863,1752785443922,-460.0,0.00016528,2]
[372868865,1752785443931,-460.0,0.00016528,2]
[372868866,1752785443940,-460.0,0.00016528,2]
[372868868,1752785443950,-432.36032985,0.00016528,2]
[372868870,1752785443959,-460.0,0.00016528,2]
[372868872,1752785443969,-460.0,0.00016528,2]
[372868874,1752785443978,-460.0,0.00016528,2]
[372868876,1752785443987,-460.0,0.00016528,2]
[372868878,1752785443996,-460.0,0.00016528,2]
[372868880,1752785444006,-460.0,0.00016528,2]
[372868881,1752785444015,-460.0,0.00016528,2]
[372868883,1752785444024,-460.0,0.00016528,2]
[372868885,1752785444034,-460.0,0.00016528,2]
[372868887,1752785444043,-460.0,0.00016528,2]
[372868889,1752785444052,-460.0,0.00016528,2]
[372868891,1752785444061,-460.0,0.00016528,2]
[372868892,1752785444074,-460.0,0.00016528,2]
[372868894,1752785444083,-499.36,0.00016528,2]
[372868896,1752785444092,-460.0,0.00016528,2]
[372868898,1752785444101,-460.0,0.00016528,2]
[372868900,1752785444111,-460.0,0.00016528,2]
[372868902,1752785444120,-460.0,0.00016531,2]
[372868904,1752785444130,-514.5,0.00016531,2]
[372868906,1752785444139,-460.0,0.00016531,2]
[372868907,1752785444149,-460.0,0.00016531,2]
[372868909,1752785444159,-513.15,0.00016531,2]
[372868911,1752785444169,-565.9,0.00016531,2]
[372868913,1752785444178,-460.0,0.00016531,2]
[372868915,1752785444187,-460.0,0.00016532,2]
[372868917,1752785444196,-460.0,0.00016532,2]
[372868918,1752785444206,-500.0,0.00016532,2]
[372868920,1752785444215,-460.0,0.00016796,2]
[372868922,1752785444225,-460.0,0.00016797,2]
[372868924,1752785444234,-460.0,0.00016798,2]
[372868926,1752785444244,-460.0,0.00016798,2]
[372868928,1752785444254,-460.0,0.00016798,2]
[372868930,1752785444264,-460.0,0.00016798,2]
[372868932,1752785444274,-166.96,0.00016798,2]
[372868934,1752785444283,-460.0,0.00016798,2]
[372868936,1752785444293,-460.0,0.00016798,2]
[372868937,1752785444302,-460.0,0.00016798,2]
[372868940,1752785444314,-520.73,0.00016798,2]
[372868941,1752785444327,-460.0,0.00016798,2]
[372868943,1752785444336,-460.0,0.00016798,2]
[372868945,1752785444345,-460.0,0.00016798,2]
[372868947,1752785444355,-460.0,0.00016798,2]
[372868949,1752785444364,-487.99,0.00016798,2]
[372868951,1752785444374,-460.0,0.00016798,2]
[372868953,1752785444383,-460.0,0.000168,2]
[372868955,1752785444393,-441.44706166,0.000168,2]
[372868957,1752785444404,-460.0,0.000168,2]
[372868958,1752785444413,-460.0,0.00016801,2]
[372868960,1752785444428,-460.0,0.00016801,2]
[372868962,1752785444439,-460.0,0.00016802,2]
[372868964,1752785444451,-339.63,0.00016802,2]
[372868966,1752785444460,-460.0,0.0001707,2]
[372868967,1752785444470,-460.0,0.00017071,2]
[372868969,1752785444481,-460.0,0.00017072,2]
[372868971,1752785444492,-460.0,0.00017072,2]
[372868973,1752785444501,-370.34,0.00017072,2]
[372868975,1752785444510,-302.62,0.00017072,2]
[372868977,1752785444520,-209.55,0.00017072,2]
[372868979,1752785444529,-460.0,0.00017072,2]
[372868981,1752785444539,-460.0,0.00017075,2]
[372868983,1752785444548,-434.32026985,0.00017076,2]
[372868984,1752785444557,-201.70397419,0.00017183,2]
[372868986,1752785444567,-446.78,0.00017344,2]
[372868988,1752785444576,-460.0,0.00017345,2]
[372868990,1752785444586,-460.0,0.00017346,2]
[372868992,1752785444596,-460.0,0.00017346,2]
[372868994,1752785444605,-460.0,0.00017346,2]
[372868996,1752785444615,-579.59,0.00017349,2]
[372868998,1752785444624,-460.0,0.00017619,2]
[372869000,1752785444634,-418.7,0.0001762,2]
[372869002,1752785444643,-589.0,0.0001762,2]
[372869004,1752785444655,-256.90276891,0.0001762,2]
[372869005,1752785444665,-295.37025946,0.00017893,2]
[372869007,1752785444675,-248.93321377,0.000179,2]
[372869009,1752785444684,-160.0,0.00017951,2]
[372869011,1752785444694,-839.15451687,0.00017951,2]
[372869013,1752785444705,-160.0,0.00017951,2]
[372869015,1752785444715,-214.44804168,0.00017951,2]
[372869017,1752785444724,-525.67742785,0.00017951,2]
[372869019,1752785444734,-230.85589339,0.00017951,2]
[372869021,1752785444743,-215.59244943,0.00017951,2]
[372869023,1752785444753,-160.0,0.00017951,2]
[372869025,1752785444763,-420.0,0.00018053,2]
[372869027,1752785444772,-911.0,0.00018144,2]
[372869029,1752785444782,-248.93321371,0.00018176,2]
[372869030,1752785444791,-248.93321371,0.00018452,2]
[372869032,1752785444800,-949.80724267,0.00018724,2]
[372869034,1752785444809,-248.93321371,0.00018728,2]
[372869036,1752785444819,-302.8788636,0.000189,2]
[372869038,1752785444829,-1769.65270011,0.000189,2]
[372869040,1752785444839,-302.8788636,0.000189,2]
[372869041,1752785444849,-179.92802879,0.00018909,2]
[372869043,1752785444858,-248.93321371,0.00019003,2]
[372869045,1752785444868,-151.0,0.00019004,2]
[372869047,1752785444877,-151.0,0.00019004,2]
[372869049,1752785444886,-302.8788636,0.00019089,2]
[372869050,1752785444895,-302.8788636,0.00019089,2]
[372869052,1752785444906,-207.4,0.00019172,2]
[372869054,1752785444916,-151.0,0.00019172,2]
[372869056,1752785444925,-151.0,0.00019172,2]
[372869058,1752785444934,-151.0,0.00019172,2]
[372869060,1752785444944,-151.0,0.00019172,2]
[372869061,1752785444953,-151.0,0.00019172,2]
[372869062,1752785444962,-151.0,0.00019172,2]
[372869063,1752785444971,-151.0,0.00019172,2]
[372869064,1752785444980,-151.0,0.00019172,2]
[372869065,1752785444989,-151.0,0.00019172,2]
[372869066,1752785445000,-151.0,0.00019172,2]
[372869067,1752785445012,-151.0,0.00019172,2]
[372869068,1752785445027,-151.0,0.00019172,2]
[372869069,1752785445036,-151.0,0.00019172,2]
[372869070,1752785445048,-151.0,0.00019172,2]
[372869071,1752785445058,-151.0,0.00019172,2]
[372869072,1752785445067,-151.0,0.00019172,2]
[372869073,1752785445076,-151.0,0.00019172,2]
[372869074,1752785445085,-151.0,0.00019172,2]
[372869075,1752785445094,-151.0,0.00019172,2]
[372869076,1752785445103,-151.0,0.00019172,2]
[372869077,1752785445113,-297.843416,0.00019178,2]
[372869078,1752785445122,-666.0,0.00019178,2]
[372869079,1752785445131,-302.8788636,0.00019278,2]
[372869080,1752785445140,-302.8788636,0.00019278,2]
[372869081,1752785445150,-248.93321371,0.00019279,2]
[372869082,1752785445158,-302.8788636,0.00019467,2]
[372869083,1752785445168,-302.99996671,0.00019467,2]
[372869084,1752785445177,-248.93321371,0.00019555,2]
[372869085,1752785445187,-302.8788636,0.00019656,2]
[372869086,1752785445199,-647.0,0.00019713,2]
[372869087,1752785445208,-2155.0,0.00019713,2]
[372869088,1752785445217,-968.0,0.00019713,2]
[372869089,1752785445226,-587.0,0.00019728,2]
[372869090,1752785445234,-248.93321371,0.00019831,2]
[372869091,1752785445243,-454.3182954,0.00019845,4]
[372869092,1752785445252,-151.0,0.00019895,2]
[372869093,1752785445262,-151.0,0.00019895,2]
[372869094,1752785445271,-454.3182954,0.00020034,4]
[372869095,1752785445280,-248.93321371,0.00020107,2]
[372869096,1752785445289,-500.0,0.00020164,2]
[372869097,1752785445298,-374.345949,0.00020187,2]
[372869098,1752785445308,-454.3182954,0.00020223,4]
[372869099,1752785445317,-576.958633,0.00020235,2]
[372869100,1752785445326,-319.4629674,0.0002024,2]
[372869101,1752785445335,-178.0508326,0.0002024,2]
[372869102,1752785445344,-248.93321371,0.00020383,3]
[372869103,1752785445353,-457.95302949,0.00020412,4]
[372869105,1752785445362,-215.0738,0.00020541,2]
[372869107,1752785445371,-248.93321371,0.00020659,3]
[372869108,1752785445380,-248.93321371,0.00020934,4]
[372869109,1752785445390,-401.47,0.00021042,2]
[372869110,1752785445400,-576.958633,0.00021061,2]
[372869111,1752785445409,-178.0508326,0.00021061,2]
[372869112,1752785445418,-178.0508326,0.00021061,2]
[372869113,1752785445428,-576.958633,0.00021061,2]
[372869114,1752785445439,-576.958633,0.00021061,2]
[372869115,1752785445450,-576.958633,0.00021061,2]
[372869116,1752785445460,-576.958633,0.00021061,2]
[372869117,1752785445469,-576.958633,0.00021061,2]
[372869118,1752785445479,-576.958633,0.00021061,2]
[372869119,1752785445487,-576.958633,0.00021061,2]
[372869120,1752785445497,-576.958633,0.00021061,2]
[372869121,1752785445506,-576.958633,0.00021061,2]
[372869122,1752785445515,-248.93321371,0.0002121,4]
[372869123,1752785445525,-153.0,0.00021315,2]
[372869124,1752785445534,-248.93321371,0.00021486,5]
[372869125,1752785445543,-823.0,0.00021558,2]
[372869126,1752785445552,-248.93321371,0.00021762,5]
[372869127,1752785445561,-801.001887,0.00021843,8]
[372869128,1752785445570,-223.0315306,0.0002191,2]
[372869129,1752785445580,-182.30555274,0.0002199,2]
[372869130,1752785445589,-151.0,0.00022,7]
[372869131,1752785445598,-151.0,0.00022,7]
[372869132,1752785445607,-154.0,0.00022,2]
[372869133,1752785445617,-500.0,0.00022016,2]
[372869134,1752785445626,-500.0,0.00022016,2]
[372869135,1752785445635,-248.93321371,0.00022038,6]
[372869136,1752785445644,-500.0,0.0002229,2]
[372869137,1752785445655,-500.0,0.0002229,2]
[372869138,1752785445664,-248.93321371,0.00022314,7]
[372869139,1752785445674,-500.0,0.00022356,2]
[372869140,1752785445683,-154.898254,0.00022455,2]
[372869141,1752785445693,-1292.52,0.000225,2]
[372869142,1752785445702,-500.0,0.00022564,2]
[372869143,1752785445711,-500.0,0.00022564,2]
[372869144,1752785445720,-248.93321371,0.0002259,7]
[372869146,1752785445729,-297.843416,0.00022603,2]
[372869147,1752785445738,-201.0,0.0002265,5]
[372869148,1752785445748,-450.82,0.00022689,3]
[372869150,1752785445757,-160.0,0.00022699,3]
[372869151,1752785445766,-150.27,0.00022703,3]
[372869153,1752785445776,-2200.0,0.00022713,2]
[372869154,1752785445786,-647.0,0.00022713,2]
[372869155,1752785445796,-2155.0,0.00022713,2]
[372869157,1752785445805,-968.0,0.00022713,2]
[372869159,1752785445814,-638.12396354,0.0002273,8]
[372869161,1752785445824,-300.53,0.00022785,3]
[372869163,1752785445833,-429.2412091,0.00022795,2]
[372869165,1752785445843,-429.2412091,0.00022795,2]
[372869167,1752785445852,-428.5118566,0.00022795,2]
[372869170,1752785445862,-500.0,0.00022838,2]
[372869171,1752785445871,-500.0,0.00022838,2]
[372869174,1752785445880,-151.0,0.0002284,7]
[372869176,1752785445890,-248.93321371,0.00022866,8]
[372869177,1752785445900,-151.0,0.000229,7]
[372869180,1752785445910,-153.0,0.00022904,2]
[372869181,1752785445920,-153.0,0.00022904,2]
[372869183,1752785445930,-154.898254,0.00022936,6]
[372869185,1752785445939,-154.898254,0.00022952,8]
[372869187,1752785445949,-153.7028389,0.00022959,2]
[372869189,1752785445958,-153.0,0.00022959,2]
[372869191,1752785445968,-153.0,0.00022959,2]
[372869194,1752785445978,-153.0,0.00022959,2]
[372869196,1752785445987,-154.898254,0.00022969,8]
[372869198,1752785445996,-99.20183617,0.0002299,3]
[372869200,1752785446009,-501.86816383,0.0002299,3]
[372869202,1752785446018,-160.0,0.00023,3]
[372869204,1752785446027,-3000.0,0.00023,2]
[372869206,1752785446035,-3000.0,0.00023,2]
[372869208,1752785446044,-160.0,0.00023,3]
[372869210,1752785446052,-151.0,0.00023,7]
[372869212,1752785446061,-151.0,0.00023,7]
[372869214,1752785446070,-160.0,0.00023,3]
[372869216,1752785446080,-160.0,0.00023,3]
[372869218,1752785446088,-154.898254,0.00023006,3]
[372869220,1752785446097,-3000.0,0.0002301,2]
[372869222,1752785446106,-2570.78358217,0.0002301,2]
[372869224,1752785446117,-429.21641783,0.0002301,2]
[372869226,1752785446126,-154.0,0.00023014,7]
[372869228,1752785446134,-66.53117475,0.0002302,2]
[372869230,1752785446143,-2933.46882525,0.0002302,2]
[372869232,1752785446152,-3000.0,0.0002302,2]
[372869236,1752785446173,-3000.0,0.0002303,2]
[372869238,1752785446181,-3000.0,0.0002303,2]
[372869240,1752785446190,-151.0,0.0002303,7]
[372869242,1752785446200,-151.0,0.0002303,7]
[372869261,1752785446374,-151.0,0.0002303,7]
[372869263,1752785446385,-3000.0,0.0002304,2]
[372869265,1752785446395,-3000.0,0.0002304,2]
[372869267,1752785446408,-1143.87174866,0.0002304,2]
[372869269,1752785446418,-3000.0,0.0002305,2]
[372869271,1752785446427,-3000.0,0.0002305,2]
[372869273,1752785446438,-3381.14171,0.0002306,2]
[372869275,1752785446450,-3000.0,0.0002306,2]
[372869277,1752785446459,-3000.0,0.0002307,2]
[372869279,1752785446468,-3000.0,0.0002308,2]
[372869281,1752785446479,-3000.0,0.0002309,2]
[372869283,1752785446488,-3000.0,0.000231,2]
[372869285,1752785446498,-151.0,0.000231,7]
[372869287,1752785446507,-476.16111942,0.000231,7]
[372869289,1752785446518,-2161.56,0.000231,7]
[372869291,1752785446528,-3000.0,0.0002311,2]
[372869293,1752785446538,-193.33769752,0.00023112,2]
[372869295,1752785446547,-500.0,0.00023112,2]
[372869297,1752785446556,-150.0,0.00023118,2]
[372869299,1752785446566,-150.0,0.00023118,2]
[372869302,1752785446575,-150.0,0.00023118,2]
[372869303,1752785446585,-3000.0,0.0002312,2]
[372869305,1752785446594,-3000.0,0.0002313,2]
[372869307,1752785446603,-1225.56116943,0.0002313,2]
[372869309,1752785446612,-3000.0,0.0002314,2]
[372869311,1752785446622,-151.0,0.0002314,7]
[372869313,1752785446631,-248.93321371,0.00023141,8]
[372869315,1752785446641,-2302.34318022,0.0002315,2]
[372869317,1752785446653,-3000.0,0.0002315,2]
[372869320,1752785446662,-3000.0,0.0002316,2]
[372869322,1752785446672,-3000.0,0.0002317,2]
[372869323,1752785446681,-151.0,0.0002317,7]
[372869326,1752785446691,-151.0,0.0002317,7]
[372869328,1752785446700,-151.0,0.0002317,7]
[372869330,1752785446709,-151.0,0.0002317,7]
[372869331,1752785446719,-151.0,0.0002317,7]
[372869333,1752785446728,-151.0,0.0002317,7]
[372869335,1752785446737,-500.203814,0.0002317,7]
[372869337,1752785446747,-500.203814,0.0002317,7]
[372869339,1752785446756,-202.307778,0.0002317,7]
[372869341,1752785446766,-3000.0,0.0002318,2]
[372869343,1752785446776,-151.0,0.0002318,7]
[372869345,1752785446786,-151.0,0.0002318,7]
[372869347,1752785446795,-151.0,0.0002318,7]
[372869349,1752785446805,-151.0,0.0002318,7]
[372869351,1752785446814,-151.0,0.0002318,7]
[372869353,1752785446824,-151.0,0.0002318,7]
[372869355,1752785446833,-151.0,0.0002318,7]
[372869357,1752785446842,-270.191752,0.0002318,7]
[372869359,1752785446852,-270.191752,0.0002318,7]
[372869361,1752785446862,-151.0,0.0002318,7]